fUST/lending_fUST_20240918
["ID","MTS","AMOUNT","RATE_DAILY","PERIOD"]
[338445682,1726643452504,-500.0,0.00019178,2]
[338445683,1726643452515,-699.79,0.00019178,2]
[338445684,1726643452525,-1096.57,0.00019178,2]
[338445685,1726643452535,-1443.28,0.00019178,2]
[338445686,1726643452545,-500.0,0.00019178,2]
[338445687,1726643452555,-500.0,0.00019178,2]
[338445688,1726643452564,-1492.43,0.00019178,2]
[338445689,1726643452574,-500.0,0.00019178,2]
[338445690,1726643452584,-1095.69,0.00019178,2]
[338445691,1726643452594,-500.0,0.00019178,2]
[338445692,1726643452604,-1073.5,0.00019178,2]
[338445693,1726643452614,-500.0,0.00019178,2]
[338445694,1726643452624,-500.0,0.00019178,2]
[338445695,1726643452633,-2445.91,0.00019178,2]
[338445696,1726643452642,-731.03,0.00019178,2]
[338445697,1726643452652,-627.05274603,0.00019178,2]
[338445698,1726643452663,-894.17,0.00019178,2]
[338445699,1726643452672,-500.0,0.00019178,2]
[338445700,1726643452681,-500.0,0.00019178,2]
[338445701,1726643452691,-500.0,0.00019178,2]
[338445702,1726643452700,-500.0,0.00019178,2]
[338445703,1726643452710,-500.0,0.00019178,2]
[338445704,1726643452720,-500.0,0.00019178,2]
[338445705,1726643452729,-79299.65,0.00019178,2]
[338445706,1726643452739,-500.0,0.00019178,2]
[338445707,1726643452752,-500.0,0.00019178,2]
[338445708,1726643452761,-500.0,0.00019178,2]
[338445709,1726643452771,-500.0,0.00019178,2]
[338445710,1726643452781,-931.96,0.00019178,2]
[338445711,1726643452791,-500.0,0.00019178,2]
[338445712,1726643452800,-500.0,0.00019178,2]
[338445713,1726643452810,-875.3,0.00019178,2]
[338445714,1726643452820,-500.0,0.00019178,2]
[338445715,1726643452830,-500.0,0.00019178,2]
[338445716,1726643452840,-500.0,0.00019178,2]
[338445717,1726643452849,-500.0,0.00019178,2]
[338445718,1726643452859,-500.0,0.00019178,2]
[338445719,1726643452867,-500.0,0.00019178,2]
[338445720,1726643452877,-500.0,0.00019178,2]
[338445721,1726643452887,-1084.18,0.00019178,2]
[338445722,1726643452896,-500.0,0.00019178,2]
[338445723,1726643452905,-500.0,0.00019178,2]
[338445724,1726643452917,-525.26,0.00019178,2]
[338445725,1726643452927,-3063.96,0.00019178,2]
[338445726,1726643452936,-696.62,0.00019178,2]
[338445727,1726643452946,-2088.36,0.00019178,2]
[338445728,1726643452956,-1330.6,0.00019178,2]
[338445729,1726643452965,-9556.36,0.00019178,2]
[338445730,1726643452975,-500.0,0.00019178,2]
[338445731,1726643452984,-500.0,0.00019178,2]
[338445732,1726643452994,-2347.83,0.00019178,2]
[338445733,1726643453004,-500.0,0.00019178,2]
[338445734,1726643453013,-1013.72,0.00019178,2]
[338445735,1726643453022,-500.0,0.00019178,2]
[338445736,1726643453033,-9486.04,0.00019178,2]
[338445737,1726643453042,-500.0,0.00019178,2]
[338445738,1726643453051,-450.43159163,0.00019178,2]
[338445739,1726643453061,-1450.17,0.00019178,2]
[338445740,1726643453071,-500.0,0.00019178,2]
[338445741,1726643453080,-500.0,0.00019178,2]
[338445742,1726643453090,-500.0,0.00019178,2]
[338445743,1726643453099,-575.09232438,0.00019178,2]
[338445744,1726643453109,-500.0,0.00019178,2]
[338445745,1726643453118,-1422.94,0.00019178,2]
[338445746,1726643453127,-500.0,0.00019178,2]
[338445747,1726643453136,-500.0,0.00019178,2]
[338445748,1726643453145,-500.0,0.00019178,2]
[338445749,1726643453154,-725.25,0.00019178,2]
[338445750,1726643453164,-500.0,0.00019178,2]
[338445751,1726643453173,-564.16,0.00019178,2]
[338445752,1726643453182,-2005.56,0.00019178,2]
[338445753,1726643453192,-179.72547602,0.00019178,2]
[338445754,1726643453201,-830.76,0.00019178,2]
[338445755,1726643453210,-3070.7,0.00019178,2]
[338445756,1726643453219,-500.0,0.00019178,2]
[338445757,1726643453228,-500.0,0.00019178,2]
[338445758,1726643453237,-776.09,0.00019178,2]
[338445759,1726643453247,-503.93126503,0.00019178,2]
[338445760,1726643453257,-500.0,0.00019178,2]
[338445761,1726643453267,-500.0,0.00019178,2]
[338445762,1726643453278,-11915.95,0.00019178,2]
[338445763,1726643453289,-500.0,0.00019178,2]
[338445764,1726643453300,-518.37211877,0.00019178,2]
[338445765,1726643453310,-500.0,0.00019178,2]
[338445766,1726643453319,-866.34,0.00019178,2]
[338445767,1726643453330,-500.0,0.00019178,2]
[338445768,1726643453340,-500.0,0.00019178,2]
[338445769,1726643453350,-935.36,0.00019178,2]
[338445770,1726643453359,-500.0,0.00019178,2]
[338445771,1726643453368,-500.0,0.00019178,2]
[338445772,1726643453378,-500.0,0.00019178,2]
[338445773,1726643453387,-833.41,0.00019178,2]
[338445774,1726643453397,-868.44,0.00019178,2]
[338445775,1726643453407,-391.84930936,0.00019178,2]
[338445776,1726643453417,-500.0,0.00019178,2]
[338445777,1726643453427,-5556.8,0.00019178,2]
[338445778,1726643453436,-2957.38,0.00019178,2]
[338445779,1726643453446,-500.0,0.00019178,2]
[338445780,1726643453455,-606.03,0.00019178,2]
[338445781,1726643453465,-500.0,0.00019178,2]
[338445782,1726643453475,-1495.69,0.00019178,2]
[338445783,1726643453484,-922.46,0.00019178,2]
[338445784,1726643453493,-802.98,0.00019178,2]
[338445785,1726643453503,-500.0,0.00019178,2]
[338445786,1726643453512,-2583.18,0.00019178,2]
[338445787,1726643453653,-625.8,0.00019178,2]
[338445788,1726643453692,-500.0,0.00019178,2]
[338445789,1726643453703,-510.2681691,0.00019178,2]
[338445790,1726643453712,-1800.09,0.00019178,2]
[338445791,1726643453723,-539.04281045,0.00019178,2]
[338445792,1726643453732,-1130.26,0.00019178,2]
[338445793,1726643453744,-1130.26,0.00019178,2]
[338445794,1726643453754,-1130.26,0.00019178,2]
[338445795,1726643453763,-1130.26,0.00019178,2]
[338445796,1726643453773,-1130.26,0.00019178,2]
[338445797,1726643453782,-500.0,0.00019178,2]
[338445798,1726643453794,-1130.26,0.00019178,2]
[338445799,1726643453803,-578.39,0.00019178,2]
[338445800,1726643453814,-1130.26,0.00019178,2]
[338445801,1726643453825,-1350.41,0.00019178,2]
[338445802,1726643453835,-1130.26,0.00019178,2]
[338445803,1726643453844,-1130.26,0.00019178,2]
[338445804,1726643453854,-1130.26,0.00019178,2]
[338445805,1726643453864,-1130.26,0.00019178,2]
[338445806,1726643453874,-1130.26,0.00019178,2]
[338445807,1726643453883,-846.27,0.00019178,2]
[338445808,1726643453893,-1130.26,0.00019178,2]
[338445809,1726643453903,-1130.26,0.00019178,2]
[338445810,1726643453913,-500.0,0.00019178,2]
[338445811,1726643453923,-1130.26,0.00019178,2]
[338445812,1726643453933,-1130.26,0.00019178,2]
[338445813,1726643453942,-1130.26,0.00019178,2]
[338445814,1726643453952,-1130.26,0.00019178,2]
[338445815,1726643453961,-631.94243344,0.00019178,2]
[338445816,1726643453971,-1130.26,0.00019178,2]
[338445817,1726643453981,-1130.26,0.00019178,2]
[338445818,1726643453991,-532.04378667,0.00019178,2]
[338445819,1726643454000,-4662.04,0.00019178,2]
[338445820,1726643454010,-1130.26,0.00019178,2]
[338445821,1726643454020,-1130.26,0.00019178,2]
[338445822,1726643454030,-1130.26,0.00019178,2]
[338445823,1726643454040,-1130.45070908,0.00019178,2]
[338445824,1726643454049,-617.43,0.00019178,2]
[338445825,1726643454059,-500.0,0.00019178,2]
[338445826,1726643454069,-514.22,0.00019178,2]
[338445827,1726643454080,-777.07,0.00019178,2]
[338445828,1726643454090,-500.0,0.00019178,2]
[338445829,1726643454100,-500.0,0.00019178,2]
[338445830,1726643454110,-500.0,0.00019178,2]
[338445831,1726643454120,-500.0,0.00019178,2]
[338445832,1726643454130,-500.0,0.00019178,2]
[338445833,1726643454139,-1943.64,0.00019178,2]
[338445834,1726643454148,-2092.53,0.00019178,2]
[338445835,1726643454158,-506.06267921,0.00019178,2]
[338445836,1726643454169,-500.0,0.00019178,2]
[338445837,1726643454178,-500.0,0.00019178,2]
[338445838,1726643454187,-500.0,0.00019178,2]
[338445839,1726643454196,-2267.77819593,0.00019178,2]
[338445840,1726643455021,-192.21,0.00019137,3]
[338445841,1726643455031,-506.23180407,0.00019178,2]
[338445842,1726643455041,-818.7,0.00019178,2]
[338445843,1726643455050,-500.0,0.00019178,2]
[338445844,1726643455059,-502.35,0.00019178,2]
[338445845,1726643455068,-500.0,0.00019178,2]
[338445846,1726643455078,-500.0,0.00019178,2]
[338445847,1726643455088,-5527.76,0.00019178,2]
[338445848,1726643455097,-500.0,0.00019178,2]
[338445849,1726643455107,-1255.78,0.00019178,2]
[338445850,1726643455116,-500.0,0.00019178,2]
[338445851,1726643455126,-701.28,0.00019178,2]
[338445852,1726643455135,-500.0,0.00019178,2]
[338445853,1726643455145,-530.05,0.00019178,2]
[338445854,1726643455154,-10595.25,0.00019178,2]
[338445855,1726643455166,-1158.67,0.00019178,2]
[338445856,1726643455181,-1016.3,0.00019178,2]
[338445857,1726643455191,-814.09,0.00019178,2]
[338445858,1726643455200,-2419.59,0.00019178,2]
[338445859,1726643455209,-791.45,0.00019178,2]
[338445860,1726643455219,-500.0,0.00019178,2]
[338445861,1726643455229,-2757.77,0.00019178,2]
[338445862,1726643455238,-500.0,0.00019178,2]
[338445863,1726643455248,-1276.22,0.00019178,2]
[338445864,1726643455258,-500.0,0.00019178,2]
[338445865,1726643455268,-500.0,0.00019178,2]
[338445866,1726643455277,-500.0,0.00019178,2]
[338445867,1726643455287,-546.74,0.00019178,2]
[338445868,1726643455296,-934.3,0.00019178,2]
[338445869,1726643455306,-1133.2,0.00019178,2]
[338445870,1726643455315,-881.52,0.00019178,2]
[338445871,1726643455324,-3494.02,0.00019178,2]
[338445872,1726643455334,-2529.1,0.00019178,2]
[338445873,1726643455343,-501.50829629,0.00019178,2]
[338445874,1726643455352,-500.0,0.00019178,2]
[338445875,1726643455361,-500.0,0.00019178,2]
[338445876,1726643455371,-765.73,0.00019178,2]
[338445877,1726643455380,-500.0,0.00019178,2]
[338445878,1726643455389,-729.12,0.00019178,2]
[338445879,1726643455398,-550.03,0.00019178,2]
[338445880,1726643455408,-500.0,0.00019178,2]
[338445881,1726643455420,-832.25,0.00019178,2]
[338445882,1726643455430,-500.0,0.00019178,2]
[338445883,1726643455439,-371.05785694,0.00019178,2]
[338445884,1726643455448,-500.0,0.00019178,2]
[338445885,1726643455458,-500.0,0.00019178,2]
[338445886,1726643455467,-500.0,0.00019178,2]
[338445887,1726643455477,-1067.2,0.00019178,2]
[338445888,1726643455487,-1151.96,0.00019178,2]
[338445889,1726643455495,-1067.2,0.00019178,2]
[338445890,1726643455505,-1067.2,0.00019178,2]
[338445891,1726643455682,-500.0,0.00019178,2]
[338445892,1726643455694,-1067.2,0.00019178,2]
[338445893,1726643455703,-1067.2,0.00019178,2]
[338445894,1726643455712,-1067.2,0.00019178,2]
[338445895,1726643455722,-1067.2,0.00019178,2]
[338445896,1726643455731,-1067.2,0.00019178,2]
[338445897,1726643455740,-500.0,0.00019178,2]
[338445898,1726643455754,-1067.2,0.00019178,2]
[338445899,1726643455763,-500.0,0.00019178,2]
[338445900,1726643455773,-500.0,0.00019178,2]
[338445901,1726643455782,-1067.2,0.00019178,2]
[338445902,1726643455793,-500.0,0.00019178,2]
[338445903,1726643455802,-602.88926032,0.00019178,2]
[338445904,1726643455812,-1067.2,0.00019178,2]
[338445905,1726643455824,-2736.42,0.00019178,2]
[338445906,1726643455834,-1067.2,0.00019178,2]
[338445907,1726643455843,-1067.2,0.00019178,2]
[338445908,1726643455853,-500.0,0.00019178,2]
[338445909,1726643455862,-1067.2,0.00019178,2]
[338445910,1726643455872,-1067.2,0.00019178,2]
[338445911,1726643455882,-567.1,0.00019178,2]
[338445912,1726643455892,-500.0,0.00019178,2]
[338445913,1726643455902,-1067.2,0.00019178,2]
[338445914,1726643455911,-1067.2,0.00019178,2]
[338445915,1726643455921,-500.0,0.00019178,2]
[338445916,1726643455930,-1067.2,0.00019178,2]
[338445917,1726643455940,-500.0,0.00019178,2]
[338445918,1726643455949,-1067.2,0.00019178,2]
[338445919,1726643455959,-1067.2,0.00019178,2]
[338445920,1726643455968,-1067.2,0.00019178,2]
[338445921,1726643455978,-1067.2,0.00019178,2]
[338445922,1726643455987,-500.0,0.00019178,2]
[338445923,1726643455997,-2301.74,0.00019178,2]
[338445924,1726643456006,-1067.2,0.00019178,2]
[338445925,1726643456015,-1067.2,0.00019178,2]
[338445926,1726643456025,-810.21,0.00019178,2]
[338445927,1726643456035,-1976.96,0.00019178,2]
[338445928,1726643456044,-1468.42,0.00019178,2]
[338445929,1726643456054,-500.0,0.00019178,2]
[338445930,1726643456063,-1413.07,0.00019178,2]
[338445931,1726643456074,-726.56,0.00019178,2]
[338445932,1726643456084,-716.3,0.00019178,2]
[338445933,1726643456093,-716.3,0.00019178,2]
[338445934,1726643456103,-716.3,0.00019178,2]
[338445935,1726643456113,-716.3,0.00019178,2]
[338445936,1726643456122,-500.0,0.00019178,2]
[338445937,1726643456132,-4807.33,0.00019178,2]
[338445938,1726643456141,-716.3,0.00019178,2]
[338445939,1726643456151,-500.0,0.00019178,2]
[338445940,1726643456160,-716.3,0.00019178,2]
[338445941,1726643456171,-716.3,0.00019178,2]
[338445942,1726643456180,-716.3,0.00019178,2]
[338445943,1726643456190,-716.3,0.00019178,2]
[338445944,1726643456199,-716.3,0.00019178,2]
[338445945,1726643456208,-716.3,0.00019178,2]
[338445946,1726643456218,-716.3,0.00019178,2]
[338445947,1726643456227,-716.3,0.00019178,2]
[338445948,1726643456237,-716.3,0.00019178,2]
[338445949,1726643456247,-716.3,0.00019178,2]
[338445950,1726643456256,-716.3,0.00019178,2]
[338445951,1726643456265,-1293.88,0.00019178,2]
[338445952,1726643456274,-11091.31,0.00019178,2]
[338445953,1726643456283,-1246.24,0.00019178,2]
[338445954,1726643456292,-5016.66,0.00019178,2]
[338445955,1726643456301,-1453.97,0.00019178,2]
[338445956,1726643456311,-1820.81,0.00019178,2]
[338445957,1726643456320,-500.0,0.00019178,2]
[338445958,1726643456330,-500.0,0.00019178,2]
[338445959,1726643456339,-500.0,0.00019178,2]
[338445960,1726643456348,-500.0,0.00019178,2]
[338445961,1726643456357,-500.0,0.00019178,2]
[338445962,1726643456367,-500.0,0.00019178,2]
[338445963,1726643456376,-522.21529011,0.00019178,2]
[338445964,1726643456386,-862.72,0.00019178,2]
[338445965,1726643456395,-500.0,0.00019178,2]
[338445966,1726643456404,-500.0,0.00019178,2]
[338445967,1726643456414,-548.11545847,0.00019178,2]
[338445968,1726643456423,-181.02839688,0.00019178,2]
[338445969,1726643456433,-500.0,0.00019178,2]
[338445970,1726643456443,-250.0,0.00019178,2]
[338445971,1726643456452,-2431.94,0.00019178,2]
[338445972,1726643456461,-2336.63,0.00019178,2]
[338445973,1726643456471,-500.0,0.00019178,2]
[338445974,1726643456480,-500.0,0.00019178,2]
[338445975,1726643456489,-217.03620987,0.00019178,2]
[338445976,1726643456498,-2522.05,0.00019178,2]
[338445977,1726643456508,-500.0,0.00019178,2]
[338445978,1726643456517,-500.0,0.00019178,2]
[338445979,1726643456527,-978.84,0.00019178,2]
[338445980,1726643456536,-500.0,0.00019178,2]
[338445981,1726643456546,-500.0,0.00019178,2]
[338445982,1726643456555,-500.0,0.00019178,2]
[338445983,1726643456565,-935.09,0.00019178,2]
[338445984,1726643456575,-4139.49,0.00019178,2]
[338445985,1726643456584,-585.27,0.00019178,2]
[338445986,1726643456594,-500.0,0.00019178,2]
[338445987,1726643456603,-1377.64,0.00019178,2]
[338445988,1726643456612,-510.33806516,0.00019178,2]
[338445989,1726643456622,-500.0,0.00019178,2]
[338445990,1726643456632,-500.0,0.00019178,2]
[338445991,1726643456642,-970.51,0.00019178,2]
[338445992,1726643456652,-708.0,0.00019178,2]
[338445993,1726643456661,-2309.85,0.00019178,2]
[338445994,1726643456672,-1479.67,0.00019178,2]
[338445995,1726643456682,-500.0,0.00019178,2]
[338445996,1726643456691,-500.0,0.00019178,2]
[338445997,1726643456700,-500.0,0.00019178,2]
[338445998,1726643456710,-1246.4,0.00019178,2]
[338445999,1726643456719,-2033.2,0.00019178,2]
[338446000,1726643456729,-500.0,0.00019178,2]
[338446001,1726643456739,-5253.73,0.00019178,2]
[338446002,1726643456752,-3675.2,0.00019178,2]
[338446003,1726643456761,-809.26,0.00019178,2]
[338446004,1726643456771,-826.73,0.00019178,2]
[338446005,1726643456780,-1003.47,0.00019178,2]
[338446006,1726643456790,-809.26,0.00019178,2]
[338446007,1726643456799,-502.87,0.00019178,2]
[338446008,1726643456808,-809.26,0.00019178,2]
[338446009,1726643456818,-4805.86,0.00019178,2]
[338446010,1726643456827,-5204.38,0.00019178,2]
[338446011,1726643456837,-809.26,0.00019178,2]
[338446012,1726643456846,-809.26,0.00019178,2]
[338446013,1726643456855,-809.26,0.00019178,2]
[338446014,1726643456864,-500.0,0.00019178,2]
[338446015,1726643456873,-809.26,0.00019178,2]
[338446016,1726643456882,-809.26,0.00019178,2]
[338446017,1726643456891,-809.26,0.00019178,2]
[338446018,1726643456900,-2536.73,0.00019178,2]
[338446019,1726643456910,-809.26,0.00019178,2]
[338446020,1726643456920,-809.26,0.00019178,2]
[338446021,1726643456929,-500.0,0.00019178,2]
[338446022,1726643456938,-809.26,0.00019178,2]
[338446023,1726643456948,-809.26,0.00019178,2]
[338446024,1726643456957,-809.26,0.00019178,2]
[338446025,1726643456966,-809.26,0.00019178,2]
[338446026,1726643456975,-2390.57,0.00019178,2]
[338446027,1726643456984,-500.0,0.00019178,2]
[338446028,1726643456994,-809.26,0.00019178,2]
[338446029,1726643457003,-809.26,0.00019178,2]
[338446030,1726643457012,-809.26,0.00019178,2]
[338446031,1726643457022,-809.26,0.00019178,2]
[338446032,1726643457031,-809.26,0.00019178,2]
[338446033,1726643457040,-809.26,0.00019178,2]
[338446034,1726643457050,-809.26,0.00019178,2]
[338446035,1726643457059,-809.26,0.00019178,2]
[338446036,1726643457069,-1245.41,0.00019178,2]
[338446037,1726643457079,-809.26,0.00019178,2]
[338446038,1726643457089,-620.77,0.00019178,2]
[338446039,1726643457099,-1480.75,0.00019178,2]
[338446040,1726643457109,-500.0,0.00019178,2]
[338446041,1726643457118,-500.0,0.00019178,2]
[338446042,1726643457128,-500.0,0.00019178,2]
[338446043,1726643457137,-500.0,0.00019178,2]
[338446044,1726643457146,-1166.62,0.00019178,2]
[338446045,1726643457156,-2150.62,0.00019178,2]
[338446046,1726643457166,-391.88589512,0.00019178,2]
[338446047,1726643457176,-500.0,0.00019178,2]
[338446048,1726643457186,-500.0,0.00019178,2]
[338446049,1726643457196,-2325.13,0.00019178,2]
[338446050,1726643457205,-713.69,0.00019178,2]
[338446051,1726643457214,-500.0,0.00019178,2]
[338446052,1726643457223,-23981.9,0.00019178,2]
[338446053,1726643457232,-2769.44,0.00019178,2]
[338446054,1726643457241,-677.02,0.00019178,2]
[338446055,1726643457251,-504.1266409,0.00019178,2]
[338446056,1726643457260,-751.02,0.00019178,2]
[338446057,1726643457269,-500.0,0.00019178,2]
[338446058,1726643457278,-870.14,0.00019178,2]
[338446059,1726643457287,-1011.92,0.00019178,2]
[338446060,1726643457296,-500.0,0.00019178,2]
[338446061,1726643457305,-500.0,0.00019178,2]
[338446062,1726643457314,-2484.6,0.00019178,2]
[338446063,1726643457324,-2661.11,0.00019178,2]
[338446064,1726643457333,-500.0,0.00019178,2]
[338446065,1726643457342,-500.0,0.00019178,2]
[338446066,1726643457352,-500.0,0.00019178,2]
[338446067,1726643457361,-500.0,0.00019178,2]
[338446068,1726643457370,-500.0,0.00019178,2]
[338446069,1726643457380,-500.0,0.00019178,2]
[338446070,1726643457390,-500.0,0.00019178,2]
[338446071,1726643457400,-500.0,0.00019178,2]
[338446072,1726643457410,-532.45933118,0.00019178,2]
[338446073,1726643457420,-527.66,0.00019178,2]
[338446074,1726643457430,-500.0,0.00019178,2]
[338446075,1726643457439,-500.0,0.00019178,2]
[338446076,1726643457448,-1365.09,0.00019178,2]
[338446077,1726643457458,-500.0,0.00019178,2]
[338446078,1726643457467,-500.0,0.00019178,2]
[338446079,1726643457476,-500.0,0.00019178,2]
[338446080,1726643457485,-759.29,0.00019178,2]
[338446081,1726643457495,-1703.76,0.00019178,2]
[338446082,1726643457505,-1334.42,0.00019178,2]
[338446083,1726643457514,-2537.67,0.00019178,2]
[338446084,1726643457524,-2168.87,0.00019178,2]
[338446085,1726643457533,-557.93,0.00019178,2]
[338446086,1726643457542,-500.0,0.00019178,2]
[338446087,1726643457552,-1502.75,0.00019178,2]
[338446088,1726643457562,-500.0,0.00019178,2]
[338446089,1726643457571,-3149.09,0.00019178,2]
[338446090,1726643457580,-2894.28,0.00019178,2]
[338446091,1726643457589,-500.0,0.00019178,2]
[338446092,1726643457599,-4504.9,0.00019178,2]
[338446093,1726643457608,-2042.86,0.00019178,2]
[338446094,1726643457618,-557.61,0.00019178,2]
[338446095,1726643457627,-176.78123077,0.00019178,2]
[338446096,1726643457636,-1245.85,0.00019178,2]
[338446097,1726643457647,-738.05,0.00019178,2]
[338446098,1726643457656,-500.0,0.00019178,2]
[338446099,1726643457665,-500.0,0.00019178,2]
[338446100,1726643457674,-500.0,0.00019178,2]
[338446101,1726643457683,-500.0,0.00019178,2]
[338446102,1726643457693,-500.0,0.00019178,2]
[338446103,1726643457702,-500.0,0.00019178,2]
[338446104,1726643457712,-500.0,0.00019178,2]
[338446105,1726643457721,-500.0,0.00019178,2]
[338446106,1726643457730,-536.19682184,0.00019178,2]
[338446107,1726643457739,-500.0,0.00019178,2]
[338446108,1726643457752,-500.0,0.00019178,2]
[338446109,1726643457761,-500.0,0.00019178,2]
[338446110,1726643457771,-625.65,0.00019178,2]
[338446111,1726643457780,-508.16464804,0.00019178,2]
[338446112,1726643457791,-501.94453394,0.00019178,2]
[338446113,1726643457801,-2486.04,0.00019178,2]
[338446114,1726643457810,-500.0,0.00019178,2]
[338446115,1726643457821,-1203.93,0.00019178,2]
[338446116,1726643457830,-500.0,0.00019178,2]
[338446117,1726643457840,-500.0,0.00019178,2]
[338446118,1726643457849,-500.0,0.00019178,2]
[338446119,1726643457859,-500.0,0.00019178,2]
[338446120,1726643457869,-500.0,0.00019178,2]
[338446121,1726643457878,-500.0,0.00019178,2]
[338446122,1726643457889,-500.0,0.00019178,2]
[338446123,1726643457899,-500.0,0.00019178,2]
[338446124,1726643457908,-819.7,0.00019178,2]
[338446125,1726643457918,-500.0,0.00019178,2]
[338446126,1726643458063,-500.0,0.00019178,2]
[338446127,1726643458073,-500.0,0.00019178,2]
[338446128,1726643458083,-829.74,0.00019178,2]
[338446129,1726643458092,-1487.75,0.00019178,2]
[338446130,1726643458102,-500.0,0.00019178,2]
[338446131,1726643458111,-1369.49,0.00019178,2]
[338446132,1726643458121,-500.0,0.00019178,2]
[338446133,1726643458130,-500.0,0.00019178,2]
[338446134,1726643458140,-500.0,0.00019178,2]
[338446135,1726643458150,-500.0,0.00019178,2]
[338446136,1726643458160,-500.0,0.00019178,2]
[338446137,1726643458171,-1351.31,0.00019178,2]
[338446138,1726643458180,-500.0,0.00019178,2]
[338446139,1726643458190,-500.0,0.00019178,2]
[338446140,1726643458199,-500.0,0.00019178,2]
[338446141,1726643458209,-1667.89,0.00019178,2]
[338446142,1726643458219,-500.0,0.00019178,2]
[338446143,1726643458228,-793.63,0.00019178,2]
[338446144,1726643458237,-500.0,0.00019178,2]
[338446145,1726643458247,-500.0,0.00019178,2]
[338446146,1726643458256,-500.0,0.00019178,2]
[338446147,1726643458265,-500.0,0.00019178,2]
[338446148,1726643458275,-500.0,0.00019178,2]
[338446149,1726643458284,-515.88606014,0.00019178,2]
[338446150,1726643458293,-500.0,0.00019178,2]
[338446151,1726643458303,-500.0,0.00019178,2]
[338446152,1726643458312,-542.78119992,0.00019178,2]
[338446153,1726643458322,-2219.06,0.00019178,2]
[338446154,1726643458331,-500.0,0.00019178,2]
[338446155,1726643458340,-500.0,0.00019178,2]
[338446156,1726643458350,-500.0,0.00019178,2]
[338446157,1726643458360,-1027.17,0.00019178,2]
[338446158,1726643458370,-505.85601518,0.00019178,2]
[338446159,1726643458380,-500.0,0.00019178,2]
[338446160,1726643458391,-500.0,0.00019178,2]
[338446161,1726643458400,-1329.07,0.00019178,2]
[338446162,1726643458409,-500.0,0.00019178,2]
[338446163,1726643458421,-500.0,0.00019178,2]
[338446164,1726643458431,-1201.39,0.00019178,2]
[338446165,1726643458441,-500.0,0.00019178,2]
[338446166,1726643458452,-500.0,0.00019178,2]
[338446167,1726643458462,-500.0,0.00019178,2]
[338446168,1726643458472,-500.0,0.00019178,2]
[338446169,1726643458482,-500.0,0.00019178,2]
[338446170,1726643458492,-500.0,0.00019178,2]
[338446171,1726643458501,-500.0,0.00019178,2]
[338446172,1726643458511,-500.0,0.00019178,2]
[338446173,1726643458520,-1452.99,0.00019178,2]
[338446174,1726643458530,-500.0,0.00019178,2]
[338446175,1726643458539,-559.03,0.00019178,2]
[338446176,1726643458550,-500.0,0.00019178,2]
[338446177,1726643458560,-500.0,0.00019178,2]
[338446178,1726643458569,-500.0,0.00019178,2]
[338446179,1726643458579,-500.0,0.00019178,2]
[338446180,1726643458589,-500.0,0.00019178,2]
[338446181,1726643458598,-500.0,0.00019178,2]